bitfinex-derivatives/quotes_SOLF0:USTF0_20241203
["timestamp","ask_amount","ask_price","bid_price","bid_amount"]
[1733203501261,1.98,228.52,228.39,1.98]
[1733203501955,1.98,228.52,228.42,2.1883]
[1733203502862,2.1878,228.48,228.43,2.1882]
[1733203504664,2.1876,228.49,228.45,2.1879]
[1733203504961,60.406353,228.56,228.39,1.98]
[1733203505157,1.98,228.55,228.39,1.98]
[1733203505359,1.98,228.55,228.4,1.09518324]
[1733203505563,1.98,228.55,228.39,1.98]
[1733203505862,1.98,228.55,228.4,1.09518274]
[1733203506062,2.1874,228.51,228.39,1.98]
[1733203506366,2.1874,228.51,228.4,1.09518217]
[1733203506564,2.1874,228.51,228.39,1.98]
[1733203506763,2.1874,228.51,228.4,1.09517732]
[1733203507067,2.1874,228.51,228.39,1.98]
[1733203507260,2.1874,228.51,228.4,1.09517846]
[1733203507567,2.1875,228.5,228.46,2.1878]
[1733203508666,2.1875,228.5,228.39,1.98]
[1733203508865,2.1877,228.49,228.4,1.09517789]
[1733203509165,2.1877,228.49,228.39,1.98]
[1733203509563,1.98,228.55,228.39,1.98]
[1733203510465,1.98,228.55,228.45,2.188]
[1733203512064,2.1875,228.5,228.45,2.188]
[1733203512566,2.1874,228.52,228.46,2.1878]
[1733203512768,1.98,228.55,228.39,1.98]
[1733203512969,1.98,228.55,228.4,1.09517791]
[1733203513173,2.1874,228.52,228.46,2.1878]
[1733203513362,1.98,228.55,228.46,2.1878]
[1733203514667,2.1875,228.51,228.46,2.1878]
[1733203514870,1.98,228.55,228.46,2.1878]
[1733203515070,2.1873,228.53,228.46,2.1878]
[1733203515265,1.98,228.55,228.46,2.1878]
[1733203516070,2.1874,228.51,228.46,2.1878]
[1733203517167,60.406353,228.56,228.39,1.98]
[1733203517467,4.167,228.55,228.4,2.84745172]
[1733203517669,2.187,228.55,228.41,2.84745172]
[1733203517865,2.187,228.55,228.42,3.33834364]
[1733203518072,2.187,228.55,228.43,1.09517735]
[1733203518367,2.187,228.55,228.44,4.82691165]
[1733203518568,2.187,228.55,228.45,3.07496602]
[1733203518769,2.187,228.55,228.45,1.98]
[1733203518970,2.187,228.55,228.5,2.1874]
[1733203519169,2.187,228.55,228.45,1.98]
[1733203519573,2.187,228.55,228.5,2.1874]
[1733203521467,2.187,228.55,228.45,1.98]
[1733203522273,2.1871,228.54,228.44,2.6481]
[1733203522474,2.1871,228.54,228.45,1.98]
[1733203522677,2.1871,228.54,228.49,2.1875]
[1733203523076,2.1871,228.54,228.45,1.98]
[1733203524281,2.1872,228.53,228.49,2.1875]
[1733203524576,1.98,228.57,228.45,1.98]
[1733203524778,2.1872,228.54,228.48,2.1876]
[1733203524979,2.1872,228.54,228.45,1.98]
[1733203525678,2.1872,228.54,228.5,2.1875]
[1733203527381,2.1872,228.54,228.45,1.98]
[1733203527580,2.1872,228.54,228.51,2.1874]
[1733203528281,2.1872,228.54,228.45,1.98]
[1733203528582,2.1872,228.54,228.5,2.1875]
[1733203531680,1.3373,228.6,228.53,2.1871]
[1733203531681,2.1868,228.58,228.53,2.1871]
[1733203532882,2.1868,228.58,228.5,1.98]
[1733203533087,2.1868,228.58,228.54,2.1871]
[1733203541092,2.1868,228.58,228.57,5.56274837]
[1733203547091,1.3373,228.6,228.44,2.6481]
[1733203547297,1.3373,228.6,228.54,5.56274837]
[1733203547701,2.1868,228.57,228.56,5.56274837]
[1733203551999,1.3373,228.6,228.56,5.56274837]
[1733203552197,2.1867,228.58,228.53,2.1871]
[1733203552703,2.1867,228.58,228.48,2.1876]
[1733203552903,2.1867,228.58,228.45,1.98]
[1733203553203,2.1867,228.59,228.54,2.187]
[1733203553405,2.1867,228.59,228.58,5.56274837]
[1733203555807,3.3173,228.6,228.58,5.56274837]
[1733203556811,5.5038,228.6,228.58,5.56274837]
[1733203560715,3.3173,228.6,228.48,2.1876]
[1733203561012,3.3173,228.6,228.55,5.56274837]
[1733203561220,2.1869,228.57,228.55,5.56274837]
[1733203561516,3.3173,228.6,228.55,5.56274837]
[1733203561712,3.3173,228.6,228.58,5.56274837]
[1733203563115,2.1866,228.59,228.58,5.56274837]
[1733203564609,2.1866,228.59,228.54,2.1871]
[1733203564811,3.3173,228.6,228.55,5.56274837]
[1733203566419,2.1869,228.56,228.55,5.56274837]
[1733203566817,3.3173,228.6,228.55,5.56274837]
[1733203567417,3.3173,228.6,228.57,5.56274837]
[1733203568916,2.1867,228.58,228.57,5.56274837]
[1733203570125,2.1868,228.57,228.56,5.56274837]
[1733203572426,3.3173,228.6,228.56,5.56274837]
[1733203572628,2.1867,228.58,228.46,1.98]
[1733203572828,1.98,228.6,228.58,5.56274837]
[1733203573928,4.1666,228.6,228.58,5.56274837]
[1733203574122,1.98,228.6,228.58,5.56274837]
[1733203574318,4.1665,228.6,228.58,5.56274837]
[1733203575332,53.80235274,228.62,228.58,5.56274837]
[1733203575526,53.80235274,228.62,228.6,5.56274837]
[1733203576732,55.98875274,228.62,228.6,5.56274837]
[1733203577331,4.1662,228.64,228.6,5.56274837]
[1733203577631,4.1662,228.64,228.63,5.56274837]
[1733203578536,1.98,228.64,228.62,5.56274837]
[1733203578730,2.1862,228.63,228.62,5.56274837]
[1733203579625,2.1866,228.6,228.53,4.0583]
[1733203579831,2.1866,228.6,228.59,5.56274837]
[1733203580328,1.98,228.64,228.53,4.0583]
[1733203580830,1.98,228.64,228.59,5.56274837]
[1733203581331,1.98,228.64,228.63,5.56274837]
[1733203581534,1.98,228.64,228.53,4.0583]
[1733203581733,1.98,228.64,228.59,5.56274837]
[1733203581929,2.1862,228.63,228.61,5.56274837]
[1733203582232,1.98,228.64,228.61,5.56274837]
[1733203583035,2.1862,228.63,228.61,5.56274837]
[1733203583626,2.1863,228.62,228.61,5.56274837]
[1733203583827,2.1863,228.62,228.57,2.1868]
[1733203583828,1.98,228.64,228.55,2.187]
[1733203584031,1.98,228.64,228.58,5.56274837]
[1733203584432,1.98,228.64,228.53,4.0583]
[1733203584735,2.1867,228.59,228.57,5.56274837]
[1733203586830,4.1667,228.59,228.57,5.56274837]
[1733203588331,1.98,228.66,228.57,5.56274837]
[1733203588527,1.98,228.66,228.62,5.56274837]
[1733203589533,2.1863,228.63,228.62,5.56274837]
[1733203590432,1.98,228.66,228.6,5.56274837]
[1733203590829,1.98,228.66,228.53,4.0583]
[1733203591034,2.1866,228.6,228.58,5.56274837]
[1733203592241,2.1867,228.58,228.53,4.0583]
[1733203592540,2.1867,228.58,228.56,5.56274837]
[1733203593335,1.98,228.61,228.56,5.56274837]
[1733203593538,2.1867,228.59,228.58,5.56274837]
[1733203598439,2.1869,228.57,228.56,5.56274837]
[1733203599240,1.98,228.61,228.53,1.396]
[1733203599441,2.1871,228.54,228.51,5.56274837]
[1733203599645,4.1671,228.54,228.51,5.56274837]
[1733203599841,4.1671,228.54,228.52,5.56274837]
[1733203601245,4.1671,228.54,228.45,1.2815]
[1733203601246,1.98,228.54,228.5,5.56274837]
[1733203602848,2.1874,228.51,228.5,5.56274837]
[1733203604052,1.98,228.51,228.5,5.56274837]
[1733203604444,1.98,228.51,228.48,5.56274837]
[1733203605551,2.1875,228.5,228.48,5.56274837]
[1733203607054,2.1875,228.5,228.46,5.56274837]
[1733203608254,2.1875,228.5,228.44,2.188]
[1733203608255,2.1875,228.5,228.48,5.56274837]
[1733203612560,2.1875,228.5,228.46,5.56274837]
[1733203616264,2.1875,228.5,228.48,5.56274837]
[1733203616463,4.1674,228.51,228.48,5.56274837]
[1733203619070,2.1875,228.5,228.48,5.56274837]
[1733203623876,1.98,228.51,228.48,5.56274837]
[1733203624069,1.98,228.52,228.5,5.56274837]
[1733203624371,5.56274837,228.59,228.5,5.56274837]
[1733203624372,1.98,228.54,228.5,5.56274837]
[1733203624572,1.98,228.54,228.5,7.75024837]
[1733203624771,1.98,228.54,228.5,5.56274837]
[1733203625371,1.98,228.54,228.52,5.56274837]
[1733203625971,5.56274837,228.6,228.52,5.56274837]
[1733203626170,1.98,228.59,228.52,5.56274837]
[1733203626366,1.98,228.59,228.54,5.56274837]
[1733203627075,2.1869,228.57,228.54,5.56274837]
[1733203627970,2.187,228.56,228.54,5.56274837]
[1733203629178,42.38876105,228.63,228.54,5.56274837]
[1733203629377,1.98,228.62,228.54,5.56274837]
[1733203629573,194.0,228.81,228.54,5.56274837]
[1733203629574,1.3766,228.67,228.54,5.56274837]
[1733203629778,5.56274837,228.63,228.56,5.56274837]
[1733203630180,2.1866,228.59,228.56,5.56274837]
[1733203630474,4.1666,228.59,228.56,5.56274837]
[1733203631274,1.98,228.6,228.56,5.56274837]
[1733203632472,4.1666,228.6,228.56,5.56274837]
[1733203632871,1.98,228.6,228.56,5.56274837]
[1733203639084,4.1665,228.6,228.56,5.56274837]
[1733203640792,1.98,228.6,228.58,5.56274837]
[1733203641185,1.98,228.6,228.55,2.187]
[1733203641385,1.98,228.6,228.57,5.56274837]
[1733203641883,4.1666,228.6,228.57,5.56274837]
[1733203643389,1.98,228.6,228.57,5.56274837]
[1733203645688,2.1864,228.61,228.57,5.56274837]
[1733203645888,2.1864,228.61,228.59,5.56274837]
[1733203646286,1.98,228.62,228.59,5.56274837]
[1733203646986,2.1863,228.63,228.59,5.56274837]
[1733203650188,1.98,228.64,228.61,5.56274837]
[1733203650388,1.98,228.66,228.61,5.56274837]
[1733203651989,4.166,228.66,228.61,5.56274837]
[1733203652385,4.166,228.66,228.6,2.1865]
[1733203652386,4.166,228.66,228.63,5.56274837]
[1733203658300,2.186,228.66,228.65,5.56274837]
[1733203659405,2.1858,228.68,228.65,5.56274837]
[1733203663608,2.1858,228.68,228.62,2.1864]
[1733203665109,42.37482995,228.69,228.63,2.1863]
[1733203665806,42.37482995,228.69,228.65,2.1861]
[1733203666011,1.98,228.73,228.65,2.1861]
[1733203667007,2.1854,228.72,228.65,2.1861]
[1733203670915,1.98,228.74,228.65,2.1861]
[1733203671121,2.1855,228.71,228.65,2.1861]
[1733203672216,2.1856,228.7,228.65,2.1861]
[1733203673116,2.1858,228.68,228.64,1.98]
[1733203673321,2.1858,228.68,228.63,2.1862]
[1733203674021,2.1859,228.67,228.63,2.1862]
[1733203674813,1.98,228.69,228.6,2.754]
[1733203675621,2.1862,228.65,228.6,4.9405]
[1733203675818,1.98,228.69,228.6,4.9405]
[1733203676120,1.98,228.69,228.6,1.3885]
[1733203676417,1.98,228.69,228.56,1.98]
[1733203676624,2.1864,228.62,228.59,2.1867]
[1733203676822,2.1864,228.62,228.56,1.98]
[1733203677318,1.98,228.69,228.56,1.98]
[1733203677516,2.1866,228.6,228.55,22.22448822]
[1733203679123,2.1866,228.6,228.56,2.1869]
[1733203680523,2.1866,228.6,228.55,22.22448822]
[1733203680819,1.98,228.64,228.51,2.7745]
[1733203681020,1.98,228.64,228.51,4.7345]
[1733203681620,1.98,228.64,228.54,2.1871]
[1733203682127,2.1866,228.6,228.54,2.1871]
[1733203682525,1.98,228.64,228.54,2.1871]
[1733203682727,2.1867,228.59,228.54,2.1871]
[1733203683629,1.98,228.64,228.51,4.7345]
[1733203683925,2.1868,228.58,228.52,2.1872]
[1733203684725,2.1868,228.58,228.53,2.1872]
[1733203685127,2.1869,228.57,228.53,2.1872]
[1733203685533,1.98,228.64,228.51,4.9619]
[1733203685726,2.187,228.56,228.51,4.9619]
[1733203686126,1.96,228.59,228.49,2.1875]
[1733203686427,1.96,228.59,228.47,1.96]
[1733203686829,1.96,228.59,228.48,1.09452815]
[1733203687129,2.1871,228.54,228.47,1.96]
[1733203687631,1.96,228.59,228.47,1.96]
[1733203687824,1.96,228.59,228.44,1.3676]
[1733203688023,1.96,228.59,228.45,1.09475103]
[1733203688228,1.96,228.59,228.44,3.3276]
[1733203688426,2.1874,228.52,228.44,3.3276]
[1733203688629,1.96,228.59,228.44,3.3276]
[1733203688840,2.1871,228.55,228.47,2.1878]
[1733203689136,1.96,228.54,228.47,2.1878]
[1733203691032,2.1874,228.52,228.47,2.1878]
[1733203691333,1.96,228.54,228.45,2.1879]
[1733203691535,2.1875,228.51,228.44,3.3276]
[1733203691733,1.96,228.54,228.44,3.3276]
[1733203691928,1.96,228.54,228.44,23.60429144]
[1733203692330,1.96,228.54,228.44,25.79229144]
[1733203692534,1.96,228.54,228.44,23.60429144]
[1733203692736,2.1874,228.51,228.44,23.60429144]
[1733203692932,1.96,228.54,228.45,2.188]
[1733203693136,1.96,228.54,228.44,23.60429144]
[1733203693336,2.1876,228.5,228.44,23.60429144]
[1733203693536,1.96,228.54,228.44,23.60429144]
[1733203693739,2.1875,228.5,228.44,23.60429144]
[1733203694136,2.1875,228.5,228.44,25.79229144]
[1733203694834,1.96,228.54,228.44,25.79229144]
[1733203695032,1.96,228.54,228.45,2.188]
[1733203696135,2.1875,228.5,228.45,2.188]
[1733203696440,1.96,228.54,228.45,2.188]
[1733203696640,2.1875,228.51,228.45,2.188]
[1733203697537,1.96,228.54,228.44,23.60429144]
[1733203697740,2.1876,228.5,228.45,2.188]
[1733203700139,2.1876,228.49,228.45,2.188]
[1733203700540,1.96,228.54,228.44,22.23669144]
[1733203700739,2.1879,228.47,228.44,22.23669144]
[1733203701233,2.1879,228.47,228.34,2.5629]
[1733203701234,2.1883,228.42,228.38,2.1887]
[1733203701438,1.98,228.49,228.38,2.1887]
[1733203701634,1.98,228.49,228.36,1.98]
[1733203701835,2.188,228.45,228.39,2.1885]
[1733203703039,2.1881,228.44,228.39,2.1885]
[1733203706541,2.1882,228.43,228.39,2.1885]
[1733203708542,1.98,228.49,228.37,2.1887]
[1733203708746,1.285,228.48,228.34,2.5629]
[1733203708944,1.4024,228.47,228.34,2.5629]
[1733203710141,2.1884,228.41,228.34,2.5629]
[1733203710339,1.98,228.41,228.34,1.294]
[1733203710542,4.1685,228.41,228.34,2.189]
[1733203710938,1.98,228.41,228.34,2.189]
[1733203711142,2.1886,228.39,228.34,2.189]
[1733203711743,2.1885,228.4,228.34,2.189]
[1733203711938,2.1885,228.4,228.31,1.2809]
[1733203712540,2.1886,228.39,228.34,2.189]
[1733203712748,2.1886,228.39,228.31,1.2809]
[1733203713140,2.1886,228.39,228.33,2.1891]
[1733203713442,1.98,228.41,228.31,1.2809]
[1733203713640,2.1887,228.38,228.34,2.189]
[1733203714147,2.1883,228.42,228.39,2.1886]
[1733203714339,1.96,228.45,228.39,2.1886]
[1733203714544,1.96,228.45,228.31,1.2809]
[1733203714545,1.96,228.45,228.35,1.96]
[1733203715244,2.1882,228.43,228.38,2.1887]
[1733203716148,1.96,228.45,228.38,2.1887]
[1733203716449,2.1882,228.42,228.38,2.1887]
[1733203717046,2.1881,228.43,228.39,2.1885]
[1733203717746,2.188,228.44,228.37,2.1887]
[1733203717942,2.188,228.44,228.34,1.96]
[1733203718151,3.245,228.48,228.35,1.09536071]
[1733203718351,2.1877,228.47,228.36,1.09536071]
[1733203718652,2.1877,228.47,228.37,2.84786382]
[1733203718847,2.1877,228.47,228.38,1.09536071]
[1733203719051,2.1877,228.47,228.39,3.05536071]
[1733203719245,2.1877,228.47,228.4,1.09536071]
[1733203719452,2.1877,228.47,228.39,1.96]
[1733203719650,2.1877,228.47,228.4,1.09517439]
[1733203719847,2.1877,228.47,228.39,1.96]
[1733203720145,2.1877,228.47,228.4,1.09517035]
[1733203720344,2.1877,228.47,228.41,1.09517035]
[1733203720549,2.1877,228.47,228.39,1.96]
[1733203720750,2.1877,228.47,228.4,1.09517406]
[1733203720951,2.1877,228.47,228.43,2.1881]
[1733203723254,2.5404,228.56,228.39,1.96]
[1733203723457,2.1875,228.5,228.46,2.1879]
[1733203725552,2.1875,228.5,228.45,2.1879]
[1733203726456,1.96,228.55,228.45,2.1879]
[1733203726657,2.1874,228.51,228.45,2.1879]
[1733203727651,2.1874,228.51,228.41,1.3949]
[1733203727851,2.1874,228.51,228.46,2.1878]
[1733203728955,1.96,228.55,228.46,2.1878]
[1733203729256,2.1873,228.52,228.47,2.1877]
[1733203729554,1.96,228.55,228.44,1.96]
[1733203729858,5.7045,228.66,228.44,1.96]
[1733203729859,2.1871,228.54,228.44,1.96]
[1733203730458,2.1871,228.54,228.48,2.1876]
[1733203730657,2.1872,228.53,228.48,2.1876]
[1733203730852,1.96,228.57,228.44,2.188]
[1733203731158,1.96,228.57,228.43,1.96]
[1733203731853,1.96,228.57,228.45,2.1879]
[1733203733055,1.96,228.57,228.43,1.96]
[1733203733259,2.1874,228.52,228.46,2.1878]
[1733203734256,2.1874,228.52,228.47,2.1877]
[1733203734457,2.7497,228.65,228.43,1.96]
[1733203734663,1.96,228.61,228.43,1.96]
[1733203734854,1.96,228.61,228.5,2.1875]
[1733203735560,2.7497,228.65,228.5,2.1875]
[1733203735561,2.187,228.55,228.5,2.1875]
[1733203735763,1.96,228.59,228.51,2.1873]
[1733203736063,2.1869,228.57,228.51,2.1873]
[1733203736962,1.96,228.59,228.51,2.1873]
[1733203737163,2.1869,228.56,228.51,2.1873]
[1733203740066,2.1872,228.53,228.48,4.1477]
[1733203740363,1.96,228.59,228.44,1.96]
[1733203740558,1.3977,228.58,228.44,1.96]
[1733203740756,2.1873,228.52,228.47,2.1878]
[1733203741369,1.96,228.54,228.43,2.1881]
[1733203741663,1.96,228.54,228.42,23.68271893]
[1733203741860,2.1874,228.51,228.42,25.87091893]
[1733203742062,1.96,228.54,228.42,25.87091893]
[1733203742564,1.96,228.54,228.42,2.1882]
[1733203742966,2.1879,228.47,228.42,2.1882]
[1733203745362,1.96,228.49,228.42,2.1882]
[1733203745668,2.1879,228.46,228.42,2.1882]
[1733203746466,2.1879,228.46,228.38,1.96]
[1733203746768,1.96,228.55,228.38,1.96]
[1733203746972,1.96,228.55,228.45,2.1879]
[1733203747174,2.1876,228.5,228.45,2.1879]
[1733203747875,2.1876,228.5,228.38,1.96]
[1733203748270,2.1877,228.48,228.33,2.6243]
[1733203748476,1.96,228.5,228.44,2.188]
[1733203748674,1.96,228.5,228.39,1.96]
[1733203748880,2.1879,228.46,228.42,2.1882]
[1733203750181,2.1879,228.46,228.43,2.1881]
[1733203750481,2.1878,228.47,228.43,2.1881]
[1733203750779,1.96,228.5,228.43,2.1881]
[1733203751773,2.1878,228.48,228.43,2.1881]
[1733203751973,1.96,228.5,228.44,2.188]
[1733203752181,1.96,228.5,228.39,1.96]
[1733203752382,4.1475,228.5,228.39,1.96]
[1733203752586,4.1475,228.5,228.45,2.1879]
[1733203754185,2.1876,228.49,228.45,2.1879]
[1733203756684,2.1876,228.49,228.44,2.188]
[1733203757781,1.96,228.5,228.39,1.96]
[1733203757987,4.1475,228.5,228.45,2.1879]
[1733203759380,2.1876,228.49,228.45,2.1879]
[1733203759582,1.96,228.5,228.43,2.1881]
[1733203759790,1.96,228.5,228.39,1.96]
[1733203759991,1.96,228.5,228.4,1.09509371]
[1733203760286,1.96,228.5,228.39,1.96]
[1733203761278,2.5883,228.49,228.35,1.96]
[1733203761486,2.5883,228.49,228.36,1.09529841]
[1733203761689,2.188,228.45,228.4,2.1884]
[1733203761880,4.148,228.45,228.4,2.1884]
[1733203763086,2.1881,228.44,228.39,2.1885]
[1733203763389,1.96,228.45,228.35,1.96]
[1733203763589,1.96,228.45,228.36,1.09531136]
[1733203763785,1.96,228.45,228.35,1.96]
[1733203764698,2.1883,228.42,228.38,2.1886]
[1733203764884,2.1883,228.42,228.35,1.96]
[1733203765490,2.1882,228.43,228.39,2.1885]
[1733203769096,2.1882,228.43,228.35,1.96]
[1733203769894,2.1882,228.43,228.4,2.1884]
[1733203770103,4.148,228.45,228.35,1.96]
[1733203770401,4.148,228.45,228.41,2.1883]
[1733203770694,1.96,228.48,228.35,1.96]
[1733203770901,1.96,228.48,228.36,1.09523714]
[1733203771199,1.96,228.48,228.35,1.96]
[1733203771200,4.1478,228.48,228.44,2.188]
[1733203771394,4.1478,228.48,228.35,1.96]
[1733203771696,4.1478,228.48,228.43,2.1881]
[1733203771897,1.96,228.48,228.43,2.1881]
[1733203772200,2.1878,228.47,228.43,2.1881]
[1733203773101,1.96,228.48,228.35,1.96]
[1733203773306,1.96,228.48,228.36,1.09519396]
[1733203773494,1.96,228.48,228.37,1.09521635]
[1733203773705,1.96,228.48,228.35,1.96]
[1733203773899,2.188,228.45,228.41,2.1883]
[1733203776004,2.188,228.45,228.35,1.96]
[1733203776203,2.188,228.45,228.4,2.1884]
[1733203777105,2.1876,228.5,228.44,2.188]
[1733203777308,1.96,228.51,228.44,2.188]
[1733203779000,2.1876,228.49,228.44,2.188]
[1733203780898,2.1877,228.48,228.43,2.1881]
[1733203783005,2.1879,228.46,228.38,4.1486]
[1733203783207,1.96,228.51,228.38,1.96]
[1733203783607,2.188,228.45,228.4,2.1884]
[1733203784606,2.1881,228.44,228.38,2.1885]
[1733203784802,2.1881,228.44,228.35,1.96]
[1733203785102,2.1881,228.44,228.36,1.09526463]
[1733203785304,2.1882,228.43,228.39,2.1885]
[1733203788404,2.1882,228.43,228.35,1.96]
[1733203788711,2.1882,228.43,228.4,2.1884]
[1733203789016,2.1881,228.44,228.4,2.1884]
[1733203792010,1.96,228.46,228.35,1.96]
[1733203792309,2.1878,228.47,228.43,2.1882]
[1733203793313,2.1878,228.47,228.35,1.96]
[1733203793619,2.1878,228.47,228.42,2.1882]
[1733203801522,2.1878,228.47,228.35,1.96]
[1733203801523,1.96,228.49,228.35,1.96]
[1733203801720,1.96,228.49,228.38,2.1885]
[1733203802218,2.1882,228.43,228.38,2.1885]
[1733203802420,1.96,228.49,228.38,2.1885]
[1733203802620,1.96,228.49,228.36,2.1887]
[1733203802918,1.96,228.49,228.27,0.08277893]
[1733203803121,1.96,228.49,228.28,10.38859595]
[1733203803320,2.1886,228.39,228.34,2.189]
[1733203803517,4.1486,228.39,228.34,2.189]
[1733203805718,2.1887,228.38,228.32,2.1892]
[1733203806323,1.96,228.39,228.32,2.1892]
[1733203806628,1.96,228.39,228.28,3.3259]
[1733203806629,2.1887,228.37,228.31,2.1893]
[1733203807621,2.1888,228.36,228.32,2.1892]
[1733203808220,4.1486,228.39,228.34,2.189]
[1733203808428,1.96,228.39,228.34,2.189]
[1733203809234,2.1886,228.38,228.33,2.1891]
[1733203810124,2.1886,228.38,228.34,2.189]
[1733203811629,1.96,228.39,228.28,3.3259]
[1733203811829,1.96,228.39,228.35,2.1889]
[1733203812834,4.1485,228.39,228.35,2.1889]
[1733203814126,4.1485,228.39,228.34,2.189]
[1733203815628,4.1485,228.39,228.28,3.3259]
[1733203816234,4.1485,228.39,228.34,2.189]
[1733203817439,4.1485,228.39,228.28,3.3259]
[1733203817440,4.1485,228.39,228.35,2.1889]
[1733203818133,4.1485,228.39,228.34,2.189]
[1733203819341,4.1485,228.39,228.35,2.1889]
[1733203820035,1.96,228.39,228.35,2.1889]
[1733203820438,1.96,228.43,228.33,1.96]
[1733203820738,1.96,228.43,228.34,1.96]
[1733203821141,4.5877,228.46,228.38,2.1886]
[1733203821542,4.5877,228.46,228.34,1.96]
[1733203821543,2.1881,228.44,228.34,1.96]
[1733203821938,2.1881,228.44,228.38,2.1885]
[1733203822339,2.1879,228.47,228.34,1.96]
[1733203822537,2.1879,228.47,228.42,2.1882]
[1733203822932,2.1877,228.48,228.42,2.1882]
[1733203823134,1.3794,228.53,228.39,1.96]
[1733203823336,1.96,228.52,228.39,1.96]
[1733203823540,1.96,228.53,228.39,1.96]
[1733203823842,1.96,228.53,228.45,2.1879]
[1733203824046,2.1874,228.51,228.45,2.1879]
[1733203824540,1.96,228.53,228.39,1.96]
[1733203824740,2.1875,228.5,228.43,2.1881]
[1733203824949,1.96,228.53,228.43,2.1881]
[1733203825645,2.1877,228.49,228.43,2.1881]
[1733203826036,2.1877,228.49,228.44,2.1881]
[1733203826237,1.96,228.53,228.44,2.1881]
[1733203826641,1.96,228.53,228.39,1.96]
[1733203826947,2.1874,228.52,228.39,1.96]
[1733203827346,2.1874,228.52,228.47,2.1878]
[1733203827545,1.96,228.53,228.47,2.1878]
[1733203827945,1.96,228.53,228.39,1.96]
[1733203828548,2.1873,228.52,228.39,1.96]
[1733203828848,3.2651,228.56,228.4,1.09501502]
[1733203829041,1.96,228.56,228.39,1.96]
[1733203829244,2.187,228.55,228.49,2.1875]
[1733203829547,2.187,228.55,228.46,1.96]
[1733203829744,1.96,228.59,228.46,1.96]
[1733203830051,1.96,228.6,228.46,1.96]
[1733203830447,2.1869,228.57,228.51,2.1873]
[1733203831746,1.96,228.6,228.47,2.6177]
[1733203831952,2.1867,228.58,228.53,2.1872]
[1733203832357,4.6164,228.62,228.51,1.96]
[1733203832358,2.6564,228.62,228.51,1.96]
[1733203832554,1.3646,228.62,228.51,1.96]
[1733203833553,2.1866,228.59,228.54,2.1871]
[1733203833746,1.3646,228.62,228.51,1.96]
[1733203834258,1.3239,228.66,228.51,1.96]
[1733203834659,1.3239,228.66,228.57,2.1867]
[1733203835557,1.3239,228.66,228.51,1.96]
[1733203836052,1.3239,228.66,228.51,4.1385125]
[1733203836259,2.1862,228.64,228.51,1.96]
[1733203836459,2.1862,228.64,228.51,4.18754161]
[1733203836660,1.96,228.67,228.51,1.96]
[1733203837160,2.1863,228.63,228.57,2.1868]
[1733203838161,2.1861,228.65,228.51,4.19410801]
[1733203839162,1.96,228.68,228.51,4.19410801]
[1733203839859,2.1861,228.65,228.51,4.19410801]
[1733203841660,2.1861,228.65,228.6,2.1865]
[1733203845856,2.1861,228.65,228.58,1.96]
[1733203845857,2.1859,228.67,228.62,2.1863]
[1733203846061,2.6322,228.7,228.58,1.96]
[1733203846364,1.3359,228.7,228.59,1.3804]